Workbook

Sheet HFM P&L 1-9 2016
A1: HFM code | B1: HFM line | E1: 30 Sep 2016 (YTD) Per MAPPING | F1: Adjustments | G1: 30 Sep 2016 (YTD) FINAL | H1: % of sales | J1: 31 Aug 2016 (YTD) | L1: Sep 2016 (PER)
A2: 21000EXT | B2: 21000Ext - Net sales, ext | C2: [ICP None] | D2: [None] | E2: =SUMIF('TB P&L 1-9 2016'!C:C,A2,'TB P&L 1-9 2016'!H:H)-E3-'Manual adjustments_9-2016'!B13 ->  | F2: 37000 | G2: =E2+F2 ->  | J2: 5717252.24 | L2: =G2-J2 ->  | P2: 37000
A3: 21000IG | B3: 21000IG - Net sales, ig | C3: [ICP Top] | D3: [None] | E3: ='Manual adjustments_9-2016'!B5 ->  | G3: =E3+F3 ->  | J3: 1974000 | L3: =G3-J3 -> 
B4: TOTINCOME - TOTAL SALES | C4: [ICP Top] | D4: [None] | E4: =SUM(E2:E3) ->  | F4: =SUM(F2:F3) -> 37000 | G4: =SUM(G2:G3) ->  | H4: =G4/$G$4 ->  | J4: =SUM(J2:J3) -> 7691252.24 | L4: =SUM(L2:L3) -> 
A5: 23010 | B5: 23010 - Direct material | C5: [ICP None] | D5: [None] | E5: =-SUMIF('TB P&L 1-9 2016'!C:C,A5,'TB P&L 1-9 2016'!G:G)+'Manual adjustments_9-2016'!B3+'Manual adjustments_9-2016'!B7-'Manual adjustments_9-2016'!B9+'Manual adjustments_9-2016'!B26 ->  | F5: =-'Manual adjustments_9-2016'!B30-F2 -> -128463 | G5: =E5+F5 ->  | J5: -2495144.38 | K5: =J5/$J$4 -> -0.3244132818 | L5: =G5-J5 ->  | M5: =L5/$L$4 -> 
A6: 23012 | B6: 23012 - Direct labor | C6: [ICP None] | D6: [None] | E6: =-SUMIF('TB P&L 1-9 2016'!C:C,A6,'TB P&L 1-9 2016'!G:G) -> 0 | F6: =-2508000*25%-10000 -> -637000 | G6: -637000 | J6: -572249.276 | K6: -0.07440261457 | L6: -64750.724
A7: 23011 | B7: 23011 - Variable production costs | C7: [ICP None] | D7: [None] | E7: =-SUMIF('TB P&L 1-9 2016'!C:C,A7,'TB P&L 1-9 2016'!G:G) ->  | F7: =-50000 -> -50000 | J7: -485007.62 | K7: -0.06305964294
A8: 23013 | B8: 23013 - Freight costs | C8: [ICP None] | D8: [None] | E8: =-SUMIF('TB P&L 1-9 2016'!C:C,A8,'TB P&L 1-9 2016'!G:G) ->  | J8: -24711.71 | K8: -0.003212963147
A9: 23014 | B9: [ICP None] | C9: [ICP None] | D9: [None] | E9: =SUMIF('TB P&L 1-9 2016'!C:C,A9,'TB P&L 1-9 2016'!H:H) ->  | J9: 52128.99 | K9: 0.00677769866
A10: 23015 | B10: 23015 - Other direct distribution costs | C10: [ICP None] | D10: [None] | E10: =-SUMIF('TB P&L 1-9 2016'!C:C,A10,'TB P&L 1-9 2016'!G:G) ->  | J10: -1826.16 | K10: -0.0002374333779
B11: COINCOME - CONTRIBUTION MARGIN | C11: [ICP Top] | D11: [None] | E11: =SUM(E4:E10) ->  | F11: =SUM(F4:F10) -> -778463 | G11: =SUM(G4:G10) ->  | J11: =SUM(J4:J10) -> 4164442.084 | L11: =SUM(L4:L10) -> 
A12: 23020 | B12: 23020 - Fixed production costs | C12: [ICP None] | D12: [None] | E12: =-SUMIF('TB P&L 1-9 2016'!C:C,A12,'TB P&L 1-9 2016'!G:G)+'Manual adjustments_9-2016'!B11+'Manual adjustments_9-2016'!B15 ->  | F12: =-2508000*33.8% -> -847704 | G12: =E12+F12 ->  | J12: -1112203.864 | K12: =J12/$J$4 -> -0.1446063436 | L12: =G12-J12 ->  | M12: =L12/$L$4 -> 
B13: GRINCOME - GROSS MARGIN | C13: [ICP Top] | D13: [None] | E13: =SUM(E11:E12) ->  | F13: =SUM(F11:F12) -> -1626167 | G13: =SUM(G11:G12) ->  | J13: =SUM(J11:J12) -> 3052238.22 | L13: =SUM(L11:L12) -> 
A14: 23021 | B14: 23021 - RnD costs | C14: [ICP None] | D14: [None] | E14: =-SUMIF('TB P&L 1-9 2016'!C:C,A14,'TB P&L 1-9 2016'!G:G) -> 0 | F14: =-2508000*8.7% -> -218196 | G14: =E14+F14 -> -218196 | J14: -217853.376 | K14: =J14/$J$4 -> -0.0283248253 | L14: =G14-J14 -> -342.624 | M14: =L14/$L$4 -> 
A15: 23022 | B15: 23022 - Selling expenses | C15: [ICP None] | D15: [None] | E15: =-SUMIF('TB P&L 1-9 2016'!C:C,A15,'TB P&L 1-9 2016'!G:G) ->  | F15: =-50000-'Manual adjustments_9-2016'!B32-2508000*13.4% -> -417072 | J15: -528818.648 | K15: -0.06875585815
A16: 23023 | B16: 23023 - Administrative expenses | C16: [ICP None] | D16: [None] | E16: =-SUMIF('TB P&L 1-9 2016'!C:C,A16,'TB P&L 1-9 2016'!G:G) ->  | F16: =2508000*(25%+33.8%+8.7%+13.4%) -> 2028972 | J16: -650366.766 | K16: -0.08455928186
A17: 22010 | B17: 22010 - Exchange gain on operating items | C17: [ICP None] | D17: [None] | E17: =SUMIF('TB P&L 1-9 2016'!C:C,A17,'TB P&L 1-9 2016'!H:H) ->  | J17: 22240.97 | K17: 0.00289172287
A18: 23026 | B18: 23026 - Exchange loss on operating items | C18: [ICP None] | D18: [None] | E18: =-SUMIF('TB P&L 1-9 2016'!C:C,A18,'TB P&L 1-9 2016'!G:G) ->  | J18: -29881.45 | K18: -0.003885121573
A19: 23027EXT | B19: 23027Ext - Gain/loss on sale of fixed assets, ext | C19: [ICP None] | D19: [None] | E19: =SUMIF('TB P&L 1-9 2016'!C:C,A19,'TB P&L 1-9 2016'!H:H)-'Manual adjustments_9-2016'!B28 ->  | J19: 56000.55 | K19: 0.007281070527
A20: 23027IG | B20: 23027IG - Gain/loss on sale of fixed assets, IG | C20: [ICP Top] | D20: [None] | E20: =SUMIF('TB P&L 1-9 2016'!C:C,A20,'TB P&L 1-9 2016'!H:H) -> 0 | G20: 0 | J20: 0 | K20: 0 | L20: 0
A21: 22000 | B21: 23027IG - Gain/loss on sale of fixed assets, IG | C21: [ICP None] | D21: [None] | E21: =SUMIF('TB P&L 1-9 2016'!C:C,A21,'TB P&L 1-9 2016'!H:H)-'Manual adjustments_9-2016'!B3-'Manual adjustments_9-2016'!B11 ->  | J21: 4422.94 | K21: 0.0005750611034
A22: 23024 | B22: 23027IG - Gain/loss on sale of fixed assets, IG | C22: [ICP None] | D22: [None] | E22: =-SUMIF('TB P&L 1-9 2016'!C:C,A22,'TB P&L 1-9 2016'!G:G)+'Manual adjustments_9-2016'!B13+'Manual adjustments_9-2016'!B34 ->  | J22: -26241.79 | K22: -0.003411900843
B23: 23027IG - Gain/loss on sale of fixed assets, IG | C23: [ICP Top] | D23: IS | E23: =SUM(E13:E22) ->  | F23: =SUM(F13:F22) -> -232463 | G23: =SUM(G13:G22) ->  | J23: =SUM(J13:J22) -> 1681740.65 | K23: 0.2186562861 | L23: =SUM(L13:L22) -> 
A24: 25500 | B24: 23027IG - Gain/loss on sale of fixed assets, IG | C24: [ICP None] | D24: [None] | E24: =SUMIF('TB P&L 1-9 2016'!C:C,A24,'TB P&L 1-9 2016'!H:H) -> 0 | G24: =E24+F24 -> 0
B25: 23027IG - Gain/loss on sale of fixed assets, IG | C25: [ICP Top] | D25: IS | E25: =SUM(E23:E24) ->  | F25: =SUM(F23:F24) -> -232463 | G25: =SUM(G23:G24) -> 
A26: 25100EXT | B26: 25100EXT - Dividends, ext | C26: [ICP None] | D26: [None] | E26: =SUMIF('TB P&L 1-9 2016'!C:C,A26,'TB P&L 1-9 2016'!H:H) -> 0 | G26: =E26+F26 -> 0
A27: 25100IG | B27: 25100IG - Dividends, ig | C27: [ICP Top] | D27: [None] | E27: =SUMIF('TB P&L 1-9 2016'!C:C,A27,'TB P&L 1-9 2016'!H:H) -> 0 | G27: 0
A28: 25150 | B28: 25150 - Dividends, associates | C28: [ICP None] | D28: [None] | E28: =SUMIF('TB P&L 1-9 2016'!C:C,A28,'TB P&L 1-9 2016'!H:H) -> 0 | G28: 0
A29: 25200LTEXT | B29: 25200LTEXT - L-t interest income and similar items, ext | C29: [ICP None] | D29: [None] | E29: =SUMIF('TB P&L 1-9 2016'!C:C,A29,'TB P&L 1-9 2016'!H:H) -> 0 | G29: 0
A30: 25200LTIG | B30: 25200LTIG - L-t interest income and similar items, ig | C30: [ICP Top] | D30: [None] | E30: =SUMIF('TB P&L 1-9 2016'!C:C,A30,'TB P&L 1-9 2016'!H:H) -> 0 | G30: 0
A31: f | B31: 25200STEXT - S-t interest income and similar items, ext | C31: [ICP None] | D31: [None] | E31: =SUMIF('TB P&L 1-9 2016'!C:C,A31,'TB P&L 1-9 2016'!H:H) -> 0 | G31: 0
A32: 25200STIG | B32: 25200STIG - S-t interest income and similar items, ig | C32: [ICP Top] | D32: [None] | E32: =SUMIF('TB P&L 1-9 2016'!C:C,A32,'TB P&L 1-9 2016'!H:H) -> 0 | G32: 0
A33: 25200OTH | B33: 25200OTH - Other financial income | C33: [ICP None] | D33: [None] | E33: =SUMIF('TB P&L 1-9 2016'!C:C,A33,'TB P&L 1-9 2016'!H:H) -> 0 | G33: 0
A34: 25300LTEXT | B34: 25300LTEXT - L-t interest expense and similar items, ext | C34: [ICP None] | D34: [None] | E34: =-SUMIF('TB P&L 1-9 2016'!C:C,A34,'TB P&L 1-9 2016'!G:G) -> 0 | G34: 0
A35: 25300LTIG | B35: 25300LTIG - L-t interest expense and similar items, ig | C35: [ICP Top] | D35: [None] | E35: =-SUMIF('TB P&L 1-9 2016'!C:C,A35,'TB P&L 1-9 2016'!G:G) -> 0 | G35: 0
A36: 25300STEXT | B36: 25300STEXT - S-t interest expense and similar items, ext | C36: [ICP None] | D36: [None] | E36: =-SUMIF('TB P&L 1-9 2016'!C:C,A36,'TB P&L 1-9 2016'!G:G) ->  | H36: =G36/$G$4 -> 
A37: 25300STIG | B37: 25300STIG - S-t interest expense and similar items, ig | C37: [ICP Top] | D37: [None] | E37: =-SUMIF('TB P&L 1-9 2016'!C:C,A37,'TB P&L 1-9 2016'!G:G) -> 0 | G37: 0
A38: 25310 | B38: 25310 - Interest on post-employment obligation | C38: [ICP None] | D38: [None] | E38: =-SUMIF('TB P&L 1-9 2016'!C:C,A38,'TB P&L 1-9 2016'!G:G) -> 0 | G38: 0
A39: 25320 | B39: 25320 - Interest on pension plan assets | C39: [ICP None] | D39: [None] | E39: =-SUMIF('TB P&L 1-9 2016'!C:C,A39,'TB P&L 1-9 2016'!G:G) -> 0 | G39: 0
A40: 25330 | B40: 25330 - Recognition of actuarial gains/losses, net | C40: [ICP None] | D40: [None] | E40: =-SUMIF('TB P&L 1-9 2016'!C:C,A40,'TB P&L 1-9 2016'!G:G) -> 0 | G40: 0
A41: 25300OTH | B41: 25300OTH - Other financial expenses | C41: [ICP None] | D41: [None] | E41: =-SUMIF('TB P&L 1-9 2016'!C:C,A41,'TB P&L 1-9 2016'!G:G) -> 
A42: 25400EXCHGA | B42: 25400EXCHGA - Exchange rate gain, assets | C42: [ICP None] | D42: [None] | E42: =SUMIF('TB P&L 1-9 2016'!C:C,A42,'TB P&L 1-9 2016'!H:H) -> 0 | G42: 0
A43: 25400EXCHGL | B43: 25400EXCHGL - Exchange rate gain, liabilitites | C43: [ICP None] | D43: [None] | E43: =SUMIF('TB P&L 1-9 2016'!C:C,A43,'TB P&L 1-9 2016'!H:H) -> 0 | G43: 0
A44: 25400EXCHLA | B44: 25400EXCHLA - Exchange rate loss, assets | C44: [ICP None] | D44: [None] | E44: =-SUMIF('TB P&L 1-9 2016'!C:C,A44,'TB P&L 1-9 2016'!G:G) -> 0 | G44: 0
A45: 25400EXCHLL | B45: 25400EXCHLL - Exchange rate loss, liabilitites | C45: [ICP None] | D45: [None] | E45: =-SUMIF('TB P&L 1-9 2016'!C:C,A45,'TB P&L 1-9 2016'!G:G) -> 0 | G45: 0
B46: TOTFINANCIAL - TOTAL FINANCIAL ITEMS | C46: [ICP Top] | D46: [None] | E46: =SUM(E25:E45) ->  | F46: =SUM(F25:F45) -> -232463 | G46: =SUM(G25:G45) -> 
B47: RANFI - INCOME AFTER FINANCIAL ITEMS | C47: [ICP Top] | D47: IS | E47: =E46 ->  | F47: =F46 -> -232463 | G47: =G46 -> 
A48: 26300 | B48: 26300 - Restructuring items | C48: [ICP None] | D48: [None] | E48: =-SUMIF('TB P&L 1-9 2016'!C:C,A48,'TB P&L 1-9 2016'!G:G) -> 0 | G48: =E48+F48 -> 0
A49: 26400 | B49: 26400 - Impairment of Goodwill | C49: [ICP None] | D49: [None] | E49: =-SUMIF('TB P&L 1-9 2016'!C:C,A49,'TB P&L 1-9 2016'!G:G) -> 0 | G49: =E49+F49 -> 0
A50: 26500 | B50: 26500 - Extraordinary Items Group (d) | C50: [ICP None] | D50: [None] | E50: =-SUMIF('TB P&L 1-9 2016'!C:C,A50,'TB P&L 1-9 2016'!G:G) -> 0 | G50: =E50+F50 -> 0
A51: 26600 | B51: 26600 - Extraordinary Items Division (d) | C51: [ICP None] | D51: [None] | E51: =-SUMIF('TB P&L 1-9 2016'!C:C,A51,'TB P&L 1-9 2016'!G:G) -> 0 | G51: =E51+F51 -> 0
B52: TOTEXTRAORD - TOTAL EXTRAORDINARY ITEMS | C52: [ICP Top] | D52: [None] | E52: =SUM(E47:E51) ->  | F52: =SUM(F47:F51) -> -232463 | G52: =SUM(G47:G51) -> 
A53: 26800 | B53: 26800 - Intra-group Service, royalty, franchise fees and TP | C53: [ICP Top] | D53: [None] | E53: =-SUMIF('TB P&L 1-9 2016'!C:C,A53,'TB P&L 1-9 2016'!G:G) -> 0 | G53: =E53+F53 -> 0
B54: RESBEFAPTAX - INCOME BEFORE APPROPRIATIONS | C54: [ICP Top] | D54: IS | E54: =SUM(E52:E53) ->  | F54: =SUM(F52:F53) -> -232463 | G54: =SUM(G52:G53) -> 
A55: 27100 | B55: 27100 - Group contribution | C55: [ICP Top] | D55: [None] | E55: =SUMIF('TB P&L 1-9 2016'!C:C,A55,'TB P&L 1-9 2016'!H:H) -> 0 | G55: =E55+F55 -> 0
B56: EBT - EBT | C56: [ICP Top] | D56: IS | E56: =SUM(E54:E55) ->  | F56: =SUM(F54:F55) -> -232463 | G56: =SUM(G54:G55) -> 
A57: 28100 | B57: 28100 - Tax expense for the year | C57: [ICP None] | D57: [None] | E57: =-SUMIF('TB P&L 1-9 2016'!C:C,A57,'TB P&L 1-9 2016'!G:G) -> 0 | F57: =-'Manual adjustments_9-2016'!B17 -> -200000 | G57: =E57+F57 -> -200000 | J57: Reconciliation
A58: 28200 | B58: 28200 - Tax attributable to prior year | C58: [ICP None] | D58: [None] | E58: =-SUMIF('TB P&L 1-9 2016'!C:C,A58,'TB P&L 1-9 2016'!G:G) -> 0 | G58: 0 | J58: Income tax expense | M58: 0 | O58: -200000
A59: 28300 | B59: 28300 - Deferred tax for the year | C59: [ICP None] | D59: [None] | E59: =-SUMIF('TB P&L 1-9 2016'!C:C,A59,'TB P&L 1-9 2016'!G:G) -> 0 | F59: =-0.1*SUM(G75:G77) -> 23246.3 | G59: 23246.3 | J59: Depreciation | M59: 90000 | O59: =M59 -> 90000
A60: 28310 | B60: 28310 - Deferred tax attributable to prior year | C60: [ICP None] | D60: [None] | E60: =-SUMIF('TB P&L 1-9 2016'!C:C,A60,'TB P&L 1-9 2016'!G:G) -> 0 | G60: 0 | J60: General accruals | M60: 0 | O60: -110000
A61: 28350 | B61: 28350 - Withholding taxes | C61: [ICP None] | D61: [None] | E61: =-SUMIF('TB P&L 1-9 2016'!C:C,A61,'TB P&L 1-9 2016'!G:G) -> 0 | G61: 0 | J61: Additional inventory provision | M61: 0 | O61: -91463
A62: 28400 | B62: 28400 - Other taxes | C62: [ICP None] | D62: [None] | E62: =-SUMIF('TB P&L 1-9 2016'!C:C,A62,'TB P&L 1-9 2016'!G:G) -> 0 | G62: 0 | J62: Additional bad debts provision | M62: 0 | O62: -31000
B63: TOTTAX - TOTAL TAXES | C63: [ICP Top] | D63: [None] | E63: =SUM(E56:E62) ->  | F63: =SUM(F56:F62) -> -409216.7 | G63: =SUM(G56:G62) ->  | J63: Deferred tax | M63: 0 | O63: 23246
A64: 29100 | B64: 29100 - Net income from discontinued operations | C64: [ICP None] | D64: [None] | E64: =SUMIF('TB P&L 1-9 2016'!C:C,A64,'TB P&L 1-9 2016'!H:H) -> 0 | G64: =E64+F64 -> 0 | M64: =SUM(M58:M63) -> 90000 | O64: =SUM(O58:O63) -> -319217
A65: 29000 | B65: 29000 - Non-controlling interest | C65: [ICP None] | D65: [None] | E65: =-SUMIF('TB P&L 1-9 2016'!C:C,A65,'TB P&L 1-9 2016'!G:G) -> 0 | G65: =E65+F65 -> 0
B66: NETRES - NET INCOME | C66: [ICP Top] | D66: IS | E66: =SUM(E63:E65) ->  | F66: =SUM(F63:F65) -> -409216.7 | G66: =SUM(G63:G65) -> 
B68: TB result | E68: 1910593 | G68: 1910593
B70: Difference | E70: =E68-E66 ->  | G70: =G68-G66 -> 
B72: Reconciliation
B73: Income tax expense | E73: 0 | G73: -200000
B74: Depreciation | E74: 90000 | G74: =E74 -> 90000
B75: General accruals | E75: 0 | G75: -110000
B76: Additional inventory provision | E76: 0 | G76: -91463
B77: Additional bad debts provision | E77: 0 | G77: -31000
B78: Deferred tax | E78: 0 | G78: 23246
E79: =SUM(E73:E78) -> 90000 | G79: =SUM(G73:G78) -> -319217

Sheet TB P&L 1-9 2016
A1: Сметка | B1: Synthetical account | C1: Compare results | D1: Име | E1: Тип | F1: Начално салдо лв. | G1: Оборот лв. Db | H1: Оборот лв. Cr | I1: Крайно салдо лв.
A2: 6010-010001/01 | B2: =LEFT(A2,4) -> 6010 | C2: 23010 | D2: ОСНОВНИ М-ЛИ КЛЮЧАЛКИ | E2: BGN | F2: =BSLD(A2) ->  | G2: =DBT(A2) ->  | H2: =KRT(A2) ->  | I2: =ESLD(A2) ->  | K2: =fromDate() -> 
A3: 6010-010002/01 | B3: 6010 | C3: 23010 | D3: ОСНОВНИ М-ЛИ БРАВИ | E3: BGN | F3: =BSLD(A3) ->  | G3: =DBT(A3) ->  | H3: =KRT(A3) ->  | I3: =ESLD(A3) -> 
A4: 6010-010003/01 | B4: 6010 | C4: 23010 | D4: ОСНОВНИ М-ЛИ ДРЪЖКИ | E4: BGN
A5: 6010-010004/01 | B5: 6010 | C5: 23010 | D5: ОСНОВНИ М-ЛИ СЕЙФ | E5: BGN
A6: 6010-010005/01 | B6: 6010 | C6: 23010 | D6: ОСНОВНИ М-ЛИ ДЕТАЙЛИ | E6: BGN
A7: 6010-010006/01 | B7: 6010 | C7: 23023 | D7: ОСНОВНИ М-ЛИ СТЕЛАЖИ | E7: BGN
A8: 6010-010008/01 | B8: 6010 | C8: 23010 | D8: ОСНОВНИ М-ЛИ КАТИНАРИ | E8: BGN
A9: 6010-010009/01 | B9: 6010 | C9: 23010 | D9: ОСНОВНИ М-ЛИ ЗА ЕЛ ЛОКС | E9: BGN
A10: 6010-020001/01 | B10: 6010 | C10: 23011 | D10: СПОМАГАТЕЛНИ М-ЛИ | E10: BGN
A11: 6010-020002/01 | B11: 6010 | C11: 23011 | D11: РЕЗЕРВНИ ЧАСТИ ПРОИЗВОДСТВО | E11: BGN
A12: 6010-020003/01 | B12: 6010 | C12: 23011 | D12: МАСЛО, КОНСУМАТ.ПРОИЗВОДСТВО | E12: BGN
A13: 6010-020004/01 | B13: 6010 | C13: 23011 | D13: ЕЛ.ЕНЕРГИЯ | E13: BGN
A14: 6010-020005/01 | B14: 6010 | C14: 23011 | D14: ВОДА | E14: BGN
A15: 6010-020006/01 | B15: 6010 | C15: 23011 | D15: ПРИСПОСОБЛЕНИЯ И ИНСТРУМЕНТИ | E15: BGN
A16: 6010-020007/01 | B16: 6010 | C16: 23011 | D16: ПРИРОДЕН ГАЗ | E16: BGN
A17: 6010-020008/01 | B17: 6010 | C17: 23011 | D17: ХИГИЕННИ МАТЕРИАЛИ / 611/614 /615 | E17: BGN
A18: 6010-020010/01 | B18: 6010 | C18: 23023 | D18: КАНЦЕЛАРСКИ М-ЛИ | E18: BGN
A19: 6010-020011/01 | B19: 6010 | C19: 23023 | D19: КОНСУМАТИВИ - ОФИС ТЕХНИКА | E19: BGN
A20: 6010-020012/01 | B20: 6010 | C20: 23022 | D20: РЕКЛАМНИ М-ЛИ | E20: BGN
A21: 6010-020013/01 | B21: 6010 | C21: 23011 | D21: ЕЛ.МАТЕРИАЛИ | E21: BGN
A22: 6010-020014/01 | B22: 6010 | C22: 23011 | D22: РЕМОНТНИ МАТЕРИАЛИ | E22: BGN
A23: 6010-020015/01 | B23: 6010 | C23: 23020 | D23: МОСТРИ, М-ЛИ ЗА ПРОБИ, ПРОТОТИПИ,ИЗПИТАНИЯ ОПИТНИ ОБРАЗЦИ,ВЪТРЕШНИ НУЖДИ | E23: BGN
A24: 6010-020016/01 | B24: 6010 | C24: 23020 | D24: НОРМАТИВНИ ДОКУМЕНТИ , НАРЪЧНИЦИ | E24: BGN
A25: 6010-020018/01 | B25: 6010 | C25: 23023 | D25: ЛЕКАРСТВЕНИ СРЕДСТВА | E25: BGN
A26: 6010-020019/01 | B26: 6010 | C26: 23011 | D26: МАТЕРИАЛИ ОХРАНА НА ТРУДА | E26: BGN
A27: 6010-020020/01 | B27: 6010 | C27: 23023 | D27: СТРОИТ.М-ЛИ И ДР. РЕМОНТНИ Р-ДИ | E27: BGN
A28: 6010-020021/01 | B28: 6010 | C28: 23010 | D28: ЗА С-КА 207 | E28: BGN | K28: Transfer to CIP
A29: 6010-020026/01 | B29: 6010 | C29: 23011 | D29: РЕМОНТ-ПРИСПОСОБ.И ИНСТРУМЕНТИ ИЦ | E29: BGN
A30: 6010-030002/01 | B30: 6010 | C30: 23023 | D30: ЛА ЛАНДРОВЕР С 6265 ХК РЕЙНДЖ РОУВЪР | E30: l
A31: 6010-030003/01 | B31: 6010 | C31: 23023 | D31: ЛА МИЦУБИШИ В 8772 РН | E31: l
A32: 6010-030004/01 | B32: 6010 | C32: 23022 | D32: ТА СИТРОЕН С1 В 6449 РН - СОФИЯ | E32: l
A33: 6010-030005/01 | B33: 6010 | C33: 23022 | D33: ЛА ДАЧИЯ ЛОГАН В 0321 РС - СОФИЯ | E33: l
A34: 6010-030006/01 | B34: 6010 | C34: 23022 | D34: ТА ДАЧИЯ ЛОГАН В 8275 РС - ПЛОВДИВ | E34: l
A35: 6010-030007/01 | B35: 6010 | C35: 23022 | D35: ТА КАДДИ КАСТЕН В 9240 РВ - БЯЛО | E35: l
A36: 6010-030007/02 | B36: 6010 | C36: 23022 | D36: ТА КАДДИ КАСТЕН В 9240 РВ - БЯЛО | E36: kg
A37: 6010-030008/01 | B37: 6010 | C37: 23013 | D37: ТА СКАНИЯ В 2955 РА | E37: l
A38: 6010-030009/01 | B38: 6010 | C38: 23013 | D38: ТА ПЕЖО БОКСЕР 350 В 3015 КМ | E38: l
A39: 6010-030010/01 | B39: 6010 | C39: 23022 | D39: ТА ПЕЖО БИПЪР В 5754 НК - СОФИЯ | E39: l
A40: 6010-030011/01 | B40: 6010 | C40: 23011 | D40: ТА СИТРОЕН БЕРЛИНГО БЯЛО В 0767 НК | E40: l
A41: 6010-030012/01 | B41: 6010 | C41: 23011 | D41: ЛА ФОЛКСВАГЕН КАДИ ЗЕЛЕНО В 5461 КК | E41: l
A42: 6010-030013/01 | B42: 6010 | C42: 23011 | D42: ЛА СИТРОЕН БЕРЛИНГО СИВО В 9534 КА | E42: l
A43: 6010-030014/01 | B43: 6010 | C43: 23022 | D43: ТА СИТРОЕН НЕМО В 2748 РР | E43: l
A44: 6010-030015/01 | B44: 6010 | C44: 23011 | D44: ГАЗОКАР | E44: kg
A45: 6010-030017/01 | B45: 6010 | C45: 23011 | D45: ПАРОСТРУЙКА/ЛИСТОСЪБИРАЧ | E45: l
A46: 6010-030019/01 | B46: 6010 | C46: 23022 | D46: ТА ПЕЖО ПАРТНЕР В 4559 РМ - ПЛЕВЕН | E46: l
A47: 6010-030020/01 | B47: 6010 | C47: 23023 | D47: ГОРИВО АВТОМОБИЛИ-АА | E47: l
A48: 6010-040002/01 | B48: 6010 | C48: 23023 | D48: ЛА ЛАНДРОВЕР С 6265 ХК РЕЙНДЖ РОУВЪР | E48: BGN
A49: 6010-040003/01 | B49: 6010 | C49: 23023 | D49: ЛА МИЦУБИШИ В 8772 РН | E49: BGN
A50: 6010-040004/01 | B50: 6010 | C50: 23022 | D50: ТА СИТРОЕН С1 В 6449 РН - СОФИЯ | E50: BGN
A51: 6010-040005/01 | B51: 6010 | C51: 23022 | D51: ЛА ДАЧИЯ ЛОГАН В 0321 РС - СОФИЯ | E51: BGN
A52: 6010-040006/01 | B52: 6010 | C52: 23022 | D52: ТА ДАЧИЯ ЛОГАН В 8275 РС - ПЛОВДИВ | E52: BGN
A53: 6010-040007/01 | B53: 6010 | C53: 23022 | D53: ТА КАДИ КАСТЕН В 9240 РВ - БЯЛО | E53: BGN
A54: 6010-040008/01 | B54: 6010 | C54: 23022 | D54: ТА СКАНИЯ В 2955 РА | E54: BGN
A55: 6010-040009/01 | B55: 6010 | C55: 23013 | D55: ТА ПЕЖО БОКСЕР В 3015 КМ / 91-08 | E55: BGN
A56: 6010-040010/01 | B56: 6010 | C56: 23023 | D56: ТА ПЕЖО БИПЪР В 5754 НК - СОФИЯ | E56: BGN
A57: 6010-040011/01 | B57: 6010 | C57: 23011 | D57: ТА СИТРОЕН БЕРЛИНГО БЯЛО В 0767 НК | E57: BGN
A58: 6010-040012/01 | B58: 6010 | C58: 23011 | D58: ЛА ФОЛКСВАГЕН КАДИ ЗЕЛЕНО В 5461 КК | E58: BGN
A59: 6010-040014/01 | B59: 6010 | C59: 23023 | D59: ТА СИТРОЕН НЕМО В 2748 РР | E59: BGN
A60: 6010-040015/01 | B60: 6010 | C60: 23011 | D60: ГАЗОКАР | E60: BGN
A61: 6010-040017/01 | B61: 6010 | C61: 23022 | D61: ТА ПЕЖО ПАРТНЕР В 4559 РМ - ПЛЕВЕН | E61: BGN
A62: 6010-050002/01 | B62: 6010 | C62: 23011 | D62: МАСЛО /СПИР.ТЕЧНОСТ 611 ;615 | E62: BGN
A63: 6010-050003/01 | B63: 6010 | C63: 23011 | D63: АНТИФРИЗ - 611, 615 | E63: BGN
A64: 6010-080001/01 | B64: 6010 | C64: 23020 | D64: СТОП.ИНВ. ЗА 611 РАЗПРЕД. Р-ДИ | E64: BGN
A65: 6010-080002/01 | B65: 6010 | C65: 23011 | D65: СТОП.ИНВ. ЗА 612 СПОМАГАТ. Р-ДИ | E65: BGN
A66: 6010-080003/01 | B66: =LEFT(A66,4) -> 6010 | C66: 23023 | D66: СТОП.ИНВ. ЗА 614 АДМИНИСТР.Р-ДИ | E66: BGN
A67: 6010-080004/01 | B67: 6010 | C67: 23022 | D67: СТОП.ИНВ.ЗА 615 ПРОДАЖБИ | E67: BGN | F67: =BSLD(A67) ->  | G67: =DBT(A67) ->  | H67: =KRT(A67) ->  | I67: =ESLD(A67) -> 
A68: 6010-080005/01 | B68: 6010 | C68: 23022 | D68: СТОП.ИНВ.ЗА 615 02 Т.ПРЕДСТАВИТЕЛИ | E68: BGN
A69: 6010-080006/01 | B69: 6010 | C69: 23022 | D69: СТОП.ИНВЕНТАР -АА | E69: BGN
A70: 6010-090003/01 | B70: 6010 | C70: 23022 | D70: КОНСУМАТИВИ , ТБО - НОВ ОФ. СОФИЯ | E70: BGN
A71: 6010-090004/01 | B71: 6010 | C71: 23011 | D71: РАЗНИ | E71: BGN
A72: 6010-100001/01 | B72: 6010 | C72: 23011 | D72: ИЕ НА ОТГОВОРНО ПАЗЕНЕ | E72: BGN
A73: 6020-010001/01 | B73: 6020 | C73: 23011 | D73: ПРЕКИ НИК,ЦИНК,БАЙЦ-КЛЮЧАЛКИ | E73: BGN
A74: 6020-010002/01 | B74: 6020 | C74: 23011 | D74: ПРЕКИ НИК,ЦИНК,БАЙЦ-БРАВИ | E74: BGN
A75: 6020-010003/01 | B75: 6020 | C75: 23011 | D75: ПРЕКИ НИК,ЦИНК,БАЙЦ-ДРЪЖКИ | E75: BGN
A76: 6020-010004/01 | B76: 6020 | C76: 23011 | D76: ПРЕКИ НИК.ЦИНК, БАЙЦ-СЕЙФ | E76: BGN
A77: 6020-010005/01 | B77: 6020 | C77: 23011 | D77: ПРЕКИ НИК.ЦИНК,БАЙЦ - КАТИНАР | E77: BGN
A78: 6020-010017/01 | B78: 6020 | C78: 23011 | D78: ПРЕКИ НИК,ЦИНК,БАЙЦ-ЕЛ ЛОКС | E78: BGN
A79: 6020-020000/01 | B79: 6020 | C79: 23011 | D79: РАЗПРЕДЕЛЯЕМИ | E79: BGN
A80: 6020-020001/01 | B80: 6020 | C80: 23022 | D80: ЕКСПЕДИЦИЯ /615/ | E80: BGN
A81: 6020-020002/01 | B81: 6020 | C81: 23023 | D81: ТЕЛЕФОННИ УСЛУГИ / ИНТЕРНЕТ | E81: BGN
A82: 6020-020003/01 | B82: 6020 | C82: 23022 | D82: НАЕМИ | E82: BGN
A83: 6020-020004/01 | B83: 6020 | C83: 23022 | D83: РЕКЛАМА | E83: BGN
A84: 6020-020005/01 | B84: 6020 | C84: 23023 | D84: КОНСУЛТАЦИИ , ОДИТ,ЛИЦЕНЗ ,ЕКСПЕРТНА ОЦЕНКА ,СЕРТИФИЦИРАНЕ | E84: BGN
A85: 6020-020006/01 | B85: 6020 | C85: 23022 | D85: ТАКСИ МПС / 611 ; 615 | E85: BGN
A86: 6020-020007/01 | B86: 6020 | C86: 23023 | D86: ТАКСИ МПС / 6140 | E86: BGN
A87: 6020-020008/01 | B87: 6020 | C87: 23011 | D87: РАЗХОДИ ПО ОХРАНА НА ТРУДА | E87: BGN
A88: 6020-020009/01 | B88: 6020 | C88: 23013 | D88: ТРАНСПОРТНИ РАЗХОДИ /611/ 614/615 | E88: BGN
A89: 6020-020010/01 | B89: 6020 | C89: 23011 | D89: СМР УСЛУГА | E89: BGN
A90: 6020-020011/01 | B90: 6020 | C90: 23023 | D90: ЧЛ.И ВНОС / АБОНАМЕНТ , ЛИЦЕНЗ - ПП / АБОНАМЕНТДО РЕГИСТЪР | E90: BGN
A91: 6020-020012/01 | B91: 6020 | C91: 23020 | D91: ЗАСТРАХОВКИ | E91: BGN
A92: 6020-020013/01 | B92: 6020 | C92: 23022 | D92: СКЛАДИРАНЕ , МАГАЗИНАЖ,ТОВАРО-РАЗТОВАРНА Д/СТ | E92: BGN
A93: 6020-020014/01 | B93: 6020 | C93: 23023 | D93: АБОНАМ.ТАКСА ПО ДОГОВОР | E93: BGN
A94: 6020-020015/01 | B94: 6020 | C94: 23023 | D94: КОМИСИОННИ / НОТАРИАЛНИ / ТАКСИ ,АДМИН.У-ГИ | E94: BGN
A95: 6020-020016/01 | B95: 6020 | C95: 23011 | D95: ЕКСПОНАЦИЯ,ПРОЕКТИРАНЕ,СИТОПЕЧАТ , ЩАНЦА, ЦВЕТООТДЕЛКА, ОТПЕ | E95: BGN
A96: 6020-020017/01 | B96: 6020 | C96: 23023 | D96: КУРИЕРСКИ УСЛУГИ | E96: BGN
A97: 6020-020018/01 | B97: 6020 | C97: 23015 | D97: ИЗГОТВЯНЕ НА МД | E97: BGN
A98: 6020-020019/01 | B98: 6020 | C98: 23023 | D98: ПАТЕНТНИ ТАКСИ В СТРАНАТА | E98: BGN
A99: 6020-020020/01 | B99: 6020 | C99: 23023 | D99: ПРЕВОД ДОКУМЕНТИ | E99: BGN
A100: 6020-020022/01 | B100: 6020 | C100: 23020 | D100: ПАТЕНТНИ ТАКСИ- ПРОМЯНА ИМЕТО НА ЕООД | E100: BGN
A101: 6020-020023/01 | B101: 6020 | C101: 23023 | D101: РАЗХОДИ ЗА ОБУЧЕНИЕ, КВАЛИФ.КУРСОВЕ , КОНСУЛТАЦИИ | E101: BGN
A102: 6020-020024/01 | B102: 6020 | C102: 23023 | D102: ПАТЕНТНИ ТАКСИ В ЧУЖБИНА | E102: BGN
A103: 6020-020025/01 | B103: 6020 | C103: 23011 | D103: УСЛУГА - ЗАТОЧВАНЕ, ПРЕЗАТОЧВАНЕ ,ЗАПОЯВАНЕ,ШЛАЙФАНЕ | E103: BGN
A104: 6020-020026/01 | B104: 6020 | C104: 23023 | D104: ОТПЕЧАТВАНЕ НА ВАУЧЕРИ | E104: BGN
A105: 6020-020027/01 | B105: 6020 | C105: 23020 | D105: ПРОФИЛАКТИКА / РЕМОНТ / СОФТУЕРНИ ПРОМЕНИ , ПРЕПРОГРАМИРАНЕ | E105: BGN
A106: 6020-020029/01 | B106: 6020 | C106: 23011 | D106: УСЛУГА - РЯЗАНЕ, ИЗПИТАНИЯ, ЦИМЕНТАЦИЯ,ТЕРМООБРАБОТКА | E106: BGN
A107: 6020-020030/01 | B107: 6020 | C107: 23020 | D107: РЕМОНТ-ПРИСПОСОБ.И ИНСТРУМЕНТИ ИЦ | E107: BGN
A108: 6020-020031/01 | B108: 6020 | C108: 23011 | D108: ИЗГОТВЯНЕ НА МД ЗА ВНОС | E108: BGN
A109: 6020-020032/01 | B109: 6020 | C109: 23011 | D109: ИЗГОТВЯНЕ НА МД ЗА ИЗНОС | E109: BGN
A110: 6020-020033/01 | B110: 6020 | C110: 23011 | D110: ТРАНСПОРТНИ РАЗХОДИ ПРОИЗВОДСТВО/611 | E110: BGN
A111: 6020-020035/01 | B111: 6020 | C111: 23013 | D111: ТРАНСПОРТНИ РАЗХОДИ ТЪРГОВИЯ/615 | E111: BGN
A112: 6020-030002/01 | B112: 6020 | C112: 23023 | D112: ЛА ЛАНДРОВЕР С 6265 ХК РЕЙНДЖ РОУВЪР | E112: BGN
A113: 6020-030003/01 | B113: 6020 | C113: 23023 | D113: ЛА МИЦУБИШИ В 8772 РН | E113: BGN
A114: 6020-030004/01 | B114: 6020 | C114: 23023 | D114: ТА СИТРОЕН С1 В 6449 РН - СОФИЯ | E114: BGN
A115: 6020-030005/01 | B115: 6020 | C115: 23022 | D115: ЛА ДАЧИЯ ЛОГАН В 0321 РС - СОФИЯ | E115: BGN
A116: 6020-030006/01 | B116: 6020 | C116: 23022 | D116: ТА ДАЧИЯ ЛОГАН В 8275 РС - ПЛОВДИВ | E116: BGN
A117: 6020-030007/01 | B117: 6020 | C117: 23022 | D117: ТА КАДДИ КАСТЕН В 9240 РВ - БЯЛО | E117: BGN
A118: 6020-030008/01 | B118: 6020 | C118: 23013 | D118: ТА СКАНИЯ В 2955 РА | E118: BGN
A119: 6020-030009/01 | B119: 6020 | C119: 23013 | D119: ТА ПЕЖО БОКСЕР 350С В 3015 КМ /9108 НС | E119: BGN
A120: 6020-030010/01 | B120: 6020 | C120: 23022 | D120: ТА ПЕЖО БИПЪР В 5754 НК - СОФИЯ | E120: BGN
A121: 6020-030011/01 | B121: 6020 | C121: 23013 | D121: ТА СИТРОЕН БЕРЛИНГО БЯЛО В 0767 НК | E121: BGN
A122: 6020-030012/01 | B122: 6020 | C122: 23023 | D122: ЛА ФОЛКСФАГЕН КАДДИ ЗЕЛЕНО В 5461 КК | E122: BGN
A123: 6020-030013/01 | B123: 6020 | C123: 23013 | D123: ЛА СИТРОЕН БЕРЛИНГО СИВО В9534 КА | E123: BGN
A124: 6020-030014/01 | B124: 6020 | C124: 23022 | D124: ТА СИТРОЕН НЕМО В 2748 РР | E124: BGN
A125: 6020-030015/01 | B125: 6020 | C125: 23013 | D125: ГАЗОКАР | E125: BGN
A126: 6020-030018/01 | B126: 6020 | C126: 23022 | D126: ТА ПЕЖО ПАРТНЕР В 4559 РМ - ПЛЕВЕН | E126: BGN
A127: 6020-030019/01 | B127: 6020 | C127: 23022 | D127: УСЛУГА АВТОМОБИЛИ-АА | E127: BGN
A128: 6020-040001/01 | B128: 6020 | C128: 23020 | D128: РАЗХОДИ И ПОДР.- ИСО/СИСТЕМА ПО КАЧЕСТВО | E128: BGN
A129: 6020-040002/01 | B129: 6020 | C129: 23020 | D129: РАЗХОДИ ОHSAS 18001;1999/ С-МА ПО БЕЗОПАСНОСТ НА ТРУДА | E129: BGN
A130: 6020-050001/01 | B130: =LEFT(A130,4) -> 6020 | C130: 23022 | D130: ОПОЛЗОТВОРЯВАНЕ НА ОТПАДЪЦИ | E130: BGN
A131: 6020-050005/01 | B131: 6020 | C131: 23011 | D131: ДРУГИ-УСЛУГИ | E131: BGN | F131: =BSLD(A131) ->  | G131: =DBT(A131) ->  | H131: =KRT(A131) ->  | I131: =ESLD(A131) -> 
A132: 6020-050006/01 | B132: 6020 | C132: 23024 | D132: ТАКСА ФИНАНСОВ РИСК - ОМВ | E132: BGN
A133: 6020-050007/01 | B133: 6020 | C133: 23022 | D133: СЕРВИЗНИ У-ГИ / ОТОРИЗИРАН СЕРВИЗ - ОФ. СОФИЯ | E133: BGN
A134: 6020-060002/01 | B134: 6020 | C134: 23024 | D134: НЕПРИЗНАТИ Р-ДИ BG16RFOP002-0060-CO1 /2016 , 2017 | E134: BGN
A135: 6030-000001/01 | B135: 6030 | C135: 23020 | D135: Р-ДИ АМОРТИЗ. ОСН.ДЕЙНОСТ | E135: BGN
A136: 6030-000002/01 | B136: 6030 | C136: 23020 | D136: Р-ДИ АМОРТИЗ. ЦЕХ | E136: BGN
A137: 6030-000004/01 | B137: 6030 | C137: 23023 | D137: Р-ДИ АМОРТИЗ. АДМИНИСТРАЦИЯ | E137: BGN
A138: 6030-000005/01 | B138: 6030 | C138: 23022 | D138: Р-ДИ АМОРТИЗ. ПРОДАЖБИ | E138: BGN
A139: 6030-000006/01 | B139: 6030 | C139: 23022 | D139: Р-ДИ АМОРТИЗ. Т.ПРЕДСТАВИТЕЛИ | E139: BGN
A140: 6040-010001/01 | B140: 6040 | C140: 23023 | D140: ОСНОВНА ДЕЙНОСТ | E140: BGN
A141: 6040-010002/01 | B141: 6040 | C141: 23023 | D141: ИНСТРУМЕНТАЛАН ЦЕХ | E141: BGN
A142: 6040-010003/01 | B142: 6040 | C142: 23023 | D142: АДМИНИСТРАЦИЯ | E142: BGN
A143: 6040-010004/01 | B143: 6040 | C143: 23023 | D143: ПРОДАЖБИ | E143: BGN
A144: 6040-010005/01 | B144: 6040 | C144: 23023 | D144: ОСНОВНА ДЕЙНОСТ -ИСО | E144: BGN
A145: 6040-010007/01 | B145: 6040 | C145: 23023 | D145: ТЪРГ ПР-Л ПЛОВДИВ | E145: BGN
A146: 6040-010008/01 | B146: 6040 | C146: 23023 | D146: ТЪРГ ПР-Л СОФИЯ | E146: BGN
A147: 6040-010011/01 | B147: 6040 | C147: 23023 | D147: ТЪРГ ПР-Л ПЛЕВЕН | E147: BGN
A148: 6040-020001/01 | B148: 6040 | C148: 23023 | D148: ОСНОВНА ДЕЙНОСТ | E148: BGN
A149: 6040-020002/01 | B149: 6040 | C149: 23023 | D149: ИНСТРУМЕНТАЛЕН ЦЕХ | E149: BGN
A150: 6040-020003/01 | B150: 6040 | C150: 23023 | D150: АДМИНИСТРАЦИЯ | E150: BGN
A151: 6040-020004/01 | B151: 6040 | C151: 23023 | D151: ПРОДАЖБИ | E151: BGN
A152: 6040-020005/01 | B152: 6040 | C152: 23023 | D152: ОСНОВНА ДЕЙНОСТ -ИСО | E152: BGN
A153: 6040-030001/01 | B153: 6040 | C153: 23023 | D153: ОБЕЗЩЕТЕНИЕ ПО ЧЛ.224 КТ | E153: BGN
A154: 6040-030002/01 | B154: 6040 | C154: 23023 | D154: ОБЕЗЩЕТЕНИЕ ПО ЧЛ.222 КТ | E154: BGN
A155: 6041-000001/01 | B155: 6041 | C155: 23023 | D155: ПРОВИЗИИ ЗА РАЗХОДИ ЗА ПЕРСОНАЛА | E155: BGN
A156: 6050-010001/01 | B156: 6050 | C156: 23023 | D156: ДОО ОСНОВНА ДЕЙНОСТ | E156: BGN
A157: 6050-010002/01 | B157: 6050 | C157: 23023 | D157: ДОО ИНСТРУМЕНТАЛЕН ЦЕХ | E157: BGN
A158: 6050-010003/01 | B158: 6050 | C158: 23023 | D158: ДОО АДМИНИСТРАЦИЯ | E158: BGN
A159: 6050-010004/01 | B159: 6050 | C159: 23023 | D159: ДОО ПРОДАЖБИ | E159: BGN
A160: 6050-010005/01 | B160: 6050 | C160: 23023 | D160: ДОО ОСНОВНА ДЕЙНОСТ- ИСО | E160: BGN
A161: 6050-010006/01 | B161: 6050 | C161: 23023 | D161: ДОО СЪДРУЖНИЦИ | E161: BGN
A162: 6050-010008/01 | B162: 6050 | C162: 23023 | D162: ДОО ТЪРГ ПРЕДСТ-ЛИ ПЛОВДИВ | E162: BGN
A163: 6050-010009/01 | B163: 6050 | C163: 23023 | D163: ДОО ТЪРГ ПРЕДСТ-ЛИ СОФИЯ | E163: BGN
A164: 6050-010012/01 | B164: 6050 | C164: 23023 | D164: ДОО ТЪРГ ПРЕДСТ-ЛИ ПЛЕВЕН | E164: BGN
A165: 6050-020001/01 | B165: 6050 | C165: 23023 | D165: ДЗПО ОСНОВНА ДЕЙНОСТ | E165: BGN
A166: 6050-020002/01 | B166: 6050 | C166: 23023 | D166: ДЗПО ИНСТРУМЕНТАЛЕН ЦЕХ | E166: BGN
A167: 6050-020003/01 | B167: 6050 | C167: 23023 | D167: ДЗПО АДМИНИСТРАЦИЯ | E167: BGN
A168: 6050-020004/01 | B168: 6050 | C168: 23023 | D168: ДЗПО ПРОДАЖБИ | E168: BGN
A169: 6050-020005/01 | B169: 6050 | C169: 23023 | D169: ДЗПО ОСНОВНА ДЕЙНОСТ- ИСО | E169: BGN
A170: 6050-020007/01 | B170: 6050 | C170: 23023 | D170: ДЗПО ТЪРГ ПР-Л ПЛОВДИВ | E170: BGN
A171: 6050-020008/01 | B171: 6050 | C171: 23023 | D171: ДЗПО ТЪРГ ПР-Л СОФИЯ | E171: BGN
A172: 6050-020010/01 | B172: 6050 | C172: 23023 | D172: ДЗПО ТЪРГ ПР-ЛИ ПЛЕВЕН | E172: BGN
A173: 6050-030001/01 | B173: 6050 | C173: 23023 | D173: ЗОК ОСНОВНА ДЕЙНОСТ | E173: BGN
A174: 6050-030002/01 | B174: 6050 | C174: 23023 | D174: ЗОК ИНСТРУМЕНТАЛЕН ЦЕХ | E174: BGN
A175: 6050-030003/01 | B175: 6050 | C175: 23023 | D175: ЗОК АДМИНИСТРАЦИЯ | E175: BGN
A176: 6050-030004/01 | B176: 6050 | C176: 23023 | D176: ЗОК ПРОДАЖБИ | E176: BGN
A177: 6050-030005/01 | B177: 6050 | C177: 23023 | D177: ЗОК ОСНОВНА ДЕЙНОСТ- ИСО | E177: BGN
A178: 6050-030006/01 | B178: 6050 | C178: 23023 | D178: ЗОК СЪДРУЖНИЦИ | E178: BGN
A179: 6050-030008/01 | B179: 6050 | C179: 23023 | D179: ЗО ТЪРГ ПР-Л ПЛОВДИВ | E179: BGN
A180: 6050-030009/01 | B180: 6050 | C180: 23023 | D180: ЗО ТЪРГ ПР-ЛИ СОФИЯ | E180: BGN
A181: 6050-030012/01 | B181: 6050 | C181: 23023 | D181: ЗО ТЪРГ ПР-ЛИ ПЛЕВЕН | E181: BGN
A182: 6050-050001/01 | B182: 6050 | C182: 23023 | D182: НСС19 ОСНОВНА ДЕЙНОСТ | E182: BGN
A183: 6050-050002/01 | B183: 6050 | C183: 23023 | D183: НСС19 ИНСТРУМЕНТАЛЕН ЦЕХ | E183: BGN
A184: 6050-050003/01 | B184: 6050 | C184: 23023 | D184: НСС19 АДМИНИСТРАЦИЯ | E184: BGN
A185: 6050-050004/01 | B185: 6050 | C185: 23023 | D185: НСС19 ПРОДАЖБИ | E185: BGN
A186: 6050-050005/01 | B186: 6050 | C186: 23023 | D186: НСС19 ОСН.ДЕЙНОСТ ИСО | E186: BGN
A187: 6090-010001/01 | B187: 6090 | C187: 23024 | D187: Р-ДИ ЗА КОМАНДИРОВКИ | E187: BGN
A188: 6090-010002/01 | B188: 6090 | C188: 23024 | D188: Р-ДИ ЗА КОМАНДИРОВКИ АА | E188: BGN
A189: 6090-020001/01 | B189: 6090 | C189: 23023 | D189: ПРЕДСТАВИТЕЛНИ РАЗХОДИ | E189: BGN
A190: 6090-020002/01 | B190: 6090 | C190: 23022 | D190: СОЦИАЛНИ РАЗХОДИ | E190: BGN
A191: 6090-020003/01 | B191: 6090 | C191: 23024 | D191: ДАРЕНИЕ | E191: BGN
A192: 6090-030001/01 | B192: 6090 | C192: 23023 | D192: ДАНЪК ПРЕДСТАВИТЕЛНИ Р-ДИ | E192: BGN
A193: 6090-030002/01 | B193: 6090 | C193: 23022 | D193: ДАНЪК СОЦИАЛНИ Р-ДИ | E193: BGN
A194: 6090-030003/01 | B194: =LEFT(A194,4) -> 6090 | C194: 23023 | D194: ДАНЪК ПОДДРЪЖКА МПС | E194: BGN
A195: 6090-040005/01 | B195: 6090 | C195: 23024 | D195: ЛИХВИ ПРОСРОЧ. ЛИЗ. ДОГОВОРИ | E195: BGN | F195: =BSLD(A195) ->  | G195: =DBT(A195) ->  | H195: =KRT(A195) ->  | I195: =ESLD(A195) -> 
A196: 6090-050004/01 | B196: 6090 | C196: 23020 | D196: ДАНЪК МПС ПРОИЗВОДСТВО | E196: BGN
A197: 6090-050005/01 | B197: 6090 | C197: 23023 | D197: ДАНЪК МПС АДМИНИСТРАЦИЯ | E197: BGN
A198: 6090-050006/01 | B198: 6090 | C198: 23022 | D198: ДАНЪК МПС ТЪРГОВИЯ | E198: BGN
A199: 6090-050007/01 | B199: 6090 | C199: 23024 | D199: ДАНЪК СГРАДИ ПРОИЗВОДСТВО | E199: BGN
A200: 6090-050008/01 | B200: 6090 | C200: 23023 | D200: ДАНЪК СГРАДИ АДМИНИСТРАЦИЯ | E200: BGN
... 1874 more rows

Sheet Manual adjustments_9-2016
A1: Manual adjustments: | B1: Sep 2016 YTD | C1: Compare results | D1: Comment
A3: 1) Income from scrap of material | B3: =SUMIF('TB P&L 1-9 2016'!K:K,"Scrap of material",'TB P&L 1-9 2016'!H:H) ->  | C3: =KRT("7090-01") ->  | D3: Dr OOI / Cr Direct material costs
A5: 2) Reclassification of intra-group sales from position 21000EXT to position 21000IG | B5: =D2K("4111-000004/01",70)+ D2K(4112,70) ->  | C5: =D2K("4111-000004/01",70)+ D2K(4112,70) ->  | D5: Dr 21000EXT / Cr 21000INT
A7: 3) Transfer of costs into construction in progress | B7: =SUMIF('TB P&L 1-9 2016'!K:K,"Transfer to CIP",'TB P&L 1-9 2016'!H:H) ->  | C7: =DBT("6010-020021") ->  | D7: Cr Direct material costs
A9: 4) Cost of merchandise sold | B9: =D2K(702,304) ->  | C9: =D2K(702,304) ->  | D9: Dr Direct material costs
A11: 5) Reclassification of release of deferred income from grants | B11: =SUMIF('TB P&L 1-9 2016'!K:K,"Release of grants",'TB P&L 1-9 2016'!H:H) ->  | C11: =KRT(706) ->  | D11: Dr Other operating income / Cr Fixed production costs
A13: 6) Reclassification of turnover bonus | B13: =SUMIF('TB P&L 1-9 2016'!K:K,"Turnover bonus",'TB P&L 1-9 2016'!H:H) ->  | C13: =DBT("6090-060004") ->  | D13: Dr net sales / Cr Other operating expenses
A15: 7) Elimination of depreciation of revaluation component of FA | B15: 90000 | D15: Cr Fixed production costs | F15: Estimate
A17: 8) Income tax liability - estimate | B17: 200000 | D17: Dr Income tax expense
A19: 9) Other adjustments
A21: Movement in accounts 303 | B21: =ESLD(3030)-BSLD(3030) ->  | C21: =ESLD(3030)-BSLD(3030) -> 
A22: Movement in account 613 | B22: =ESLD(6130)-BSLD(6130) ->  | C22: =ESLD(6130)-BSLD(6130) -> 
A23: Turnover on accounts 601 against 303 | B23: =D2K(6010,3030) ->  | C23: =D2K(6010,3030) -> 
A24: Turnover on accounts 609 against 303 | B24: =D2K(6090,3030) ->  | C24: =D2K(6090,3030) -> 
A25: Turnover on accounts 204 against 303 | B25: =D2K(2040,3030) ->  | C25: =D2K(2040,3030) -> 
B26: =SUM(B21:B25) ->  | C26: =SUM(C21:C25) ->  | D26: Dr Direct material costs
A28: 10) Net book value of fixed assets sold | B28: =DBT("7090-020028") ->  | C28: =DBT("7090-020028") -> 
A30: 11) Inventory provision booked as per PPA | B30: 91463
A32: 12) Additional AR provision | B32: 31000
A34: 13) Other adjustments - rounding & correction of mapping errors | B34: 881
A36: 14) Alignment of P&L with SCF | B36: 37000

Sheet Sheet2

Sheet Sheet3
